bitfinex/quotes_ETHUSD_20240902
["timestamp","ask_amount","ask_price","bid_price","bid_amount"]
[1725308015748,2.3659,2535.2,2534.9,4.34092]
[1725308015923,2.3659,2535.4,2534.9,0.396]
[1725308016124,3.94299,2536.2,2535.5,3.94388]
[1725308016335,2.3659,2536.1,2535.4,3.94415]
[1725308016658,0.630889,2536.0,2535.4,3.94415]
[1725308016900,2.3659,2535.9,2535.4,3.94405]
[1725308017145,2.3659,2535.9,2535.3,4.3403]
[1725308017351,2.6655789,2535.8,2535.3,4.3403]
[1725308017518,6.6091289,2535.8,2535.3,4.3403]
[1725308017723,6.6091289,2535.8,2535.4,0.18759074]
[1725308018226,2.6655789,2535.8,2535.4,0.18759074]
[1725308018424,0.26655789,2535.7,2535.4,0.18759074]
[1725308022515,0.26655789,2535.7,2535.4,4.13171074]
[1725308028867,2.2973,2535.6,2535.4,0.18759074]
[1725308029080,2.2973,2535.6,2535.4,4.13172074]
[1725308030763,2.58365368,2535.6,2535.4,0.18759074]
[1725308031295,2.58365368,2535.6,2535.4,4.13173074]
[1725308033602,2.58365368,2535.6,2535.4,0.18759074]
[1725308038604,8.2791162,2535.6,2535.4,0.18759074]
[1725308038775,7.64585741,2535.5,2535.4,0.18759074]
[1725308039102,2.2973,2535.3,2534.9,5.54890187]
[1725308039522,2.2973,2535.3,2534.9,5.17976638]
[1725308039695,2.2973,2535.3,2534.9,9.12461638]
[1725308039895,3.06190374,2535.3,2534.9,9.12461638]
[1725308040298,3.06190374,2535.3,2534.9,5.17976638]
[1725308041212,3.06190374,2535.3,2534.9,9.12459638]
[1725308041838,3.06190374,2535.3,2535.0,4.34221734]
[1725308042135,3.06190374,2535.3,2535.1,0.39744734]
[1725308042341,0.70060737,2535.2,2535.0,3.94477]
[1725308042494,0.70060737,2535.2,2535.1,0.39744898]
[1725308043441,0.55,2535.5,2535.1,0.39744898]
[1725308043598,2.4867,2535.9,2535.7,3.94368]
[1725308044193,1.75149252,2536.5,2535.7,7.88736]
[1725308044194,2.4867,2536.1,2535.7,7.88736]
[1725308044414,2.4867,2536.3,2535.7,11.65459368]
[1725308046200,2.4867,2536.3,2535.7,10.74236204]
[1725308047839,2.4867,2536.3,2535.7,10.92944914]
[1725308048634,2.4867,2536.3,2535.7,11.32504914]
[1725308049796,2.4867,2536.3,2535.7,8.86714914]
[1725308050048,2.3392,2535.9,2535.7,0.18712439]
[1725308050345,2.3392,2535.9,2535.7,4.13080439]
[1725308050558,2.4493,2536.2,2535.7,4.13080439]
[1725308050803,2.4493,2536.2,2535.7,4.5278921]
[1725308051059,2.4493,2536.2,2535.7,8.47155466]
[1725308054062,2.4493,2536.2,2535.7,8.07448439]
[1725308054239,2.4493,2536.2,2535.7,8.47153941]
[1725308054668,2.4493,2536.2,2535.7,8.47153728]
[1725308055175,2.4493,2536.2,2535.7,8.07448439]
[1725308058669,2.4493,2536.2,2535.7,8.47008439]
[1725308060582,2.4493,2536.2,2535.7,8.07448439]
[1725308062037,3.3463,2535.8,2535.7,0.18712439]
[1725308062369,3.3463,2535.8,2535.5,0.3956]
[1725308062370,4.07526,2535.8,2535.5,0.3956]
[1725308062571,4.07526,2535.8,2535.7,0.18661819]
[1725308062768,4.07526,2535.8,2535.6,0.1867049]
[1725308062971,4.07526,2535.8,2535.7,0.18662444]
[1725308063189,4.07526,2535.8,2535.4,3.94414]
[1725308063393,2.3463,2535.6,2535.3,3.9443]
[1725308063541,3.94385,2535.6,2535.1,3.94461]
[1725308063741,2.740685,2535.5,2535.1,3.94452]
[1725308064293,6.684735,2535.5,2535.0,3.94475]
[1725308064583,3.94416,2535.4,2534.9,3.94482]
[1725308064798,5.0070185,2535.4,2535.0,0.39736467]
[1725308064977,5.0070185,2535.4,2534.9,3.94482]
[1725308065292,5.0070185,2535.4,2535.0,0.39737907]
[1725308065444,0.77477035,2535.3,2534.9,3.94482]
[1725308065943,2.3463,2535.2,2534.8,4.34068]
[1725308066145,2.3463,2535.2,2534.9,0.39742338]
[1725308066346,0.70653804,2535.1,2534.8,0.3956]
[1725308066877,0.70653804,2535.1,2534.8,4.34067]
[1725308067090,2.3463,2535.2,2534.8,4.34067]
[1725308073153,2.3463,2535.2,2534.9,3.94492]
[1725308076660,2.3463,2535.2,2534.9,7.8897]
[1725308077403,2.3463,2535.2,2535.0,3.94476]
[1725308077610,2.3463,2535.2,2535.1,3.94461]
[1725308077777,2.3112,2535.4,2535.1,4.13239222]
[1725308088934,2.3112,2535.7,2535.3,3.94423]
[1725308089339,2.3112,2535.7,2535.4,0.187772]
[1725308089495,3.21190036,2535.7,2535.4,0.187772]
[1725308090719,3.94383,2535.6,2535.4,0.187772]
[1725308090921,2.3229,2535.5,2535.4,0.187772]
[1725308091119,2.3229,2535.5,2535.2,3.94444]
[1725308091325,2.3229,2535.5,2535.4,0.18766573]
[1725308091536,3.2148594,2535.5,2535.3,0.18775246]
[1725308091698,3.2148594,2535.5,2535.4,0.18766573]
[1725308092070,3.2148594,2535.5,2535.2,3.94444]
[1725308092210,3.2148594,2535.5,2535.4,0.18766573]
[1725308092412,2.3358,2535.4,2535.3,0.18775246]
[1725308092624,3.44606094,2535.4,2535.1,3.94459]
[1725308092798,3.44606094,2535.4,2535.3,0.18768995]
[1725308092993,3.44606094,2535.4,2535.1,3.94459]
[1725308092994,3.44606094,2535.4,2535.2,0.18777669]
[1725308093227,3.44606094,2535.4,2535.3,0.18768995]
[1725308093613,3.44606094,2535.4,2535.1,3.94459]
[1725308093941,3.44606094,2535.4,2535.2,0.18780169]
[1725308099085,1.11026094,2535.4,2535.2,0.18780169]
[1725308099238,3.944,2535.5,2535.2,0.18780169]
[1725308102240,6.27965,2535.6,2535.2,0.18780169]
[1725308104001,2.3358,2535.6,2535.2,4.13222169]
[1725308104164,3.358129,2535.6,2535.2,4.13222169]
[1725308108097,3.358129,2535.6,2535.3,3.94424]
[1725308108302,2.3142,2535.9,2535.5,3.94391]
[1725308108500,2.3142,2535.9,2535.6,0.1875048]
[1725308109009,5.3142,2535.9,2535.6,0.1875048]
[1725308109300,6.80947336,2535.9,2535.6,0.1875048]
[1725308109636,1.49527336,2535.9,2535.6,4.1312648]
[1725308109768,6.25727,2536.1,2535.6,4.1312648]
[1725308109968,0.55,2536.0,2535.6,4.1312648]
[1725308111782,2.3142,2536.1,2535.6,0.1875048]
[1725308112105,2.3142,2536.1,2535.8,3.94348]
[1725308112312,2.3142,2536.1,2535.7,3.9436]
[1725308112610,9.50472095,2536.1,2535.8,0.18721264]
[1725308112980,0.55,2536.0,2535.5,7.88778]
[1725308113179,1.0054721,2535.9,2535.6,3.9438]
[1725308113493,0.55,2536.0,2535.3,1.23495638]
[1725308113670,3.0,2536.2,2535.4,2.3957]
[1725308113869,3.0,2536.2,2535.8,3.94352]
[1725308114987,6.94292,2536.2,2535.8,3.94352]
[1725308118612,6.94292,2536.2,2535.7,3.94367]
[1725308122954,6.94292,2536.2,2535.8,0.18685014]
[1725308123159,3.94308,2536.1,2535.8,0.18685014]
[1725308123363,3.94308,2536.1,2535.6,7.8876]
[1725308123518,3.94308,2536.1,2535.9,0.18676344]
[1725308123718,3.94308,2536.1,2535.6,7.8876]
[1725308123921,3.94308,2536.1,2535.7,0.18693684]
[1725308126152,12.38944136,2536.2,2535.7,4.13045684]
[1725308131791,8.44641136,2536.2,2535.7,4.13045684]
[1725308134183,7.59888749,2536.1,2535.7,0.18693684]
[1725308134900,3.94328,2536.0,2535.7,0.18693684]
[1725308135192,2.2844,2535.9,2535.5,3.94397]
[1725308135550,2.2844,2535.9,2535.6,0.18695484]
[1725308137251,7.54609311,2535.9,2535.6,0.18695484]
[1725308137451,11.48955311,2535.9,2535.7,0.39731252]
[1725308137677,7.54609311,2535.9,2535.4,3.94403]
[1725308137897,6.22784,2535.9,2535.8,0.18682517]
[1725308138348,6.22784,2535.9,2535.4,3.94403]
[1725308138545,6.22784,2535.9,2535.5,0.58445083]
[1725308138746,7.42015736,2535.9,2535.6,0.39736554]
[1725308138946,7.42015736,2535.9,2535.7,0.18691187]
[1725308139307,6.22784,2535.9,2535.4,3.94403]
[1725308139483,6.22784,2535.9,2535.8,0.18682517]
[1725308139653,6.22784,2535.9,2535.4,7.8881]
[1725308139876,6.22784,2535.9,2535.8,0.18682517]
[1725308140110,6.22784,2535.9,2535.4,7.8881]
[1725308140111,7.42015736,2535.9,2535.4,7.8881]
[1725308140419,6.22784,2535.9,2535.5,0.39735757]
[1725308140588,6.22784,2535.9,2535.6,0.39735757]
[1725308140917,6.22784,2535.9,2535.5,0.18708529]
[1725308141116,6.22784,2535.9,2535.4,3.94403]
[1725308141117,3.94344,2535.9,2535.6,0.58438022]
[1725308141335,3.94344,2535.9,2535.6,0.18702355]
[1725308141625,3.94344,2535.9,2535.4,7.8881]
[1725308141781,3.94344,2535.9,2535.7,0.18693684]
[1725308141982,5.14411736,2535.9,2535.4,3.94403]
[1725308142196,3.94344,2535.9,2535.8,0.18685013]
[1725308142418,3.94344,2535.9,2535.4,3.94403]
[1725308142723,3.94344,2535.9,2535.8,0.18685013]
[1725308142937,5.14411736,2535.9,2535.4,3.94403]
[1725308143079,3.94344,2535.9,2535.5,0.39736235]
[1725308143273,2.4204,2535.8,2535.6,0.39736235]
[1725308143526,4.49368,2535.7,2535.6,0.18702355]
[1725308143832,4.49368,2535.7,2535.2,7.88350638]
[1725308143993,4.49368,2535.7,2535.6,0.18702355]
[1725308144189,4.49368,2535.7,2535.2,7.88350638]
[1725308144509,4.49368,2535.7,2535.2,11.82789638]
[1725308144679,4.49368,2535.7,2535.2,9.95920275]
[1725308144877,4.49368,2535.7,2535.3,4.13157371]
[1725308148526,0.55,2535.7,2535.3,4.13157371]
[1725308149640,2.4204,2535.8,2535.4,3.94402]
[1725308149848,6.23044,2536.0,2535.5,3.94391]
[1725308150136,2.2871,2536.0,2535.6,3.94382]
[1725308150300,2.2871,2536.0,2535.7,0.18696808]
[1725308150507,5.4979,2536.2,2535.7,4.13063808]
[1725308150735,9.44088,2536.2,2535.7,4.13063808]
[1725308151251,3.94254,2536.5,2536.0,3.94321]
[1725308151402,6.94252,2536.5,2536.0,3.94321]
[1725308151741,6.94252,2536.5,2536.1,0.18661509]
[1725308151938,0.944042,2536.4,2536.1,0.18661509]
[1725308152110,4.886662,2536.4,2536.1,0.18661509]
[1725308152320,2.4979,2536.3,2536.1,0.18661509]
[1725308152539,2.4979,2536.3,2535.9,3.94336]
[1725308152908,6.44065,2536.3,2536.0,0.1865893]
[1725308153138,8.04857456,2536.3,2536.0,0.1865893]
[1725308154326,6.44065,2536.3,2536.0,0.1865893]
[1725308159665,6.30492,2536.7,2536.1,6.37238]
[1725308159957,2.3627,2536.7,2536.3,3.94267]
[1725308160168,6.30485,2536.7,2536.4,0.18621762]
[1725308160524,7.80474536,2536.7,2536.4,0.18621762]
[1725308160762,7.80474536,2536.7,2536.2,3.94289]
[1725308160982,10.24706,2536.7,2536.3,0.18630428]
[1725308161256,6.30485,2536.7,2536.3,0.18630428]
[1725308161561,10.24709,2536.7,2536.2,3.94289]
[1725308161729,10.24709,2536.7,2536.3,0.18630428]
[1725308161936,10.24709,2536.7,2536.2,3.94289]
[1725308162132,6.30485,2536.7,2536.3,0.18630428]
[1725308162341,10.24708,2536.7,2536.2,3.94289]
[1725308162514,10.24708,2536.7,2536.3,0.18630428]
[1725308162718,10.24708,2536.7,2536.2,3.94289]
[1725308162919,10.24708,2536.7,2536.3,0.18630428]
[1725308163160,10.24708,2536.7,2536.2,3.94289]
[1725308163456,10.24708,2536.7,2536.3,0.18630428]
[1725308163772,11.74700436,2536.7,2536.2,3.94289]
[1725308164060,11.74700436,2536.7,2536.4,0.18560538]
[1725308164261,11.74700436,2536.7,2536.3,0.18569204]
[1725308164569,11.74700436,2536.7,2536.4,0.18560538]
[1725308164923,11.74700436,2536.7,2536.2,3.94289]
[1725308165157,6.30485,2536.7,2536.3,0.18569204]
[1725308165459,3.0,2536.8,2536.4,6.43278]
[1725308165632,3.0,2536.8,2536.4,6.61838538]
[1725308165820,10.26566,2536.9,2536.4,6.61838538]
[1725308166562,6.32373,2536.9,2536.4,6.61838538]
[1725308167666,10.26568,2536.9,2536.4,6.61838538]
[1725308167874,3.942,2536.8,2536.4,2.67580538]
[1725308168023,5.69429359,2536.7,2536.4,0.18560538]
[1725308168222,6.23347,2536.6,2536.4,0.18560538]
[1725308168518,6.23347,2536.6,2536.5,0.18135287]
[1725308168718,6.23347,2536.6,2536.1,3.94301]
[1725308168960,6.23347,2536.6,2536.2,0.18161285]
[1725308169177,3.94245,2536.5,2536.2,0.18161285]
[1725308169660,3.9427,2536.4,2536.2,0.18161285]
[1725308170075,3.9427,2536.4,2535.9,6.32374]
[1725308170539,3.9427,2536.4,2536.0,0.18178621]
[1725308171172,3.9426,2536.4,2536.0,0.18178621]
[1725308171455,7.885,2536.5,2536.0,4.12499621]
[1725308172149,3.9426,2536.4,2536.0,0.18178621]
[1725308173421,3.94245,2536.5,2536.0,0.83233383]
[1725308173620,3.94245,2536.5,2536.1,3.94306]
[1725308174068,3.94245,2536.5,2536.2,0.18161285]
[1725308176696,2.2911,2536.6,2536.2,0.18161285]
[1725308176697,2.2911,2536.6,2536.2,4.12443285]
[1725308177274,2.2911,2536.6,2536.2,0.18161285]
[1725308178196,2.2911,2536.6,2536.2,4.12448285]
[1725308179096,2.2911,2536.6,2536.2,0.18161285]
[1725308179303,3.94244,2536.5,2536.2,0.18161285]
[1725308181104,3.08964836,2536.6,2536.2,0.18161285]
[1725308181401,7.03194836,2536.6,2536.2,0.18161285]
[1725308181575,6.2334,2536.6,2536.2,0.18161285]
[1725308182460,2.2911,2536.6,2536.2,4.12443285]
[1725308182664,6.2334,2536.6,2536.2,0.18161285]
[1725308182890,3.08964836,2536.6,2536.2,4.12451285]
[1725308183285,3.94222,2536.7,2536.2,6.48681285]
[1725308183661,7.88443,2536.7,2536.2,6.48681285]
[1725308183867,3.94221,2536.7,2536.2,6.48681285]
[1725308184967,7.88442,2536.7,2536.2,6.48681285]
[1725308185782,3.9423,2536.6,2536.2,6.48681285]
[1725308187759,6.26677,2536.8,2536.3,3.94266]
[1725308188005,3.94174,2537.0,2536.6,6.38446]
[1725308188176,3.0,2536.9,2536.6,6.38446]
[1725308188374,3.0,2536.9,2536.7,0.18122942]
[1725308188676,5.86537395,2536.9,2536.7,0.18122942]
[1725308189004,5.86537395,2536.9,2536.5,3.94241]
[1725308189166,4.75216359,2536.9,2536.8,0.18114278]
[1725308189366,4.75216359,2536.9,2536.5,3.94241]
[1725308189566,4.75216359,2536.9,2536.6,0.18131606]
[1725308191808,3.0,2536.9,2536.6,0.18131606]
[1725308192796,3.94174,2537.0,2536.6,0.18131606]
[1725308192797,3.94147,2537.2,2536.8,2.3953]
[1725308192974,3.0,2537.1,2536.8,2.3953]
[1725308193171,3.0,2537.1,2536.9,0.18097517]
[1725308193377,3.0,2537.1,2536.8,2.3953]
[1725308193598,3.0,2537.1,2536.9,0.18097517]
[1725308194118,3.0,2537.1,2536.8,2.3953]
[1725308194268,3.0,2537.1,2537.0,0.1808325]
[1725308194467,3.94112,2537.4,2536.9,4.12270911]
[1725308194668,0.55,2537.3,2537.0,4.1224925]
[1725308194937,0.55,2537.3,2537.0,0.1808325]
[1725308197730,10.21186,2537.6,2537.1,3.9415]
[1725308198023,1.75216359,2537.4,2537.0,4.1224825]
[1725308198216,5.69320359,2537.4,2537.2,0.18050358]
[1725308198518,5.69320359,2537.4,2537.0,3.94165]
[1725308198713,2.4602,2537.3,2537.0,3.94165]
[1725308198922,2.4602,2537.3,2536.9,3.94181]
[1725308199523,3.94104,2537.4,2537.0,6.25725]
[1725308202013,3.0,2537.5,2537.1,3.94138]
[1725308202192,4.75216359,2537.5,2537.1,3.94138]
[1725308203033,8.69305359,2537.5,2537.1,3.94138]
[1725308204491,8.69305359,2537.5,2537.1,3.9415]
[1725308207216,8.69305359,2537.5,2537.0,6.25726]
[1725308207414,3.94174,2537.0,2536.5,2.779]
[1725308207640,3.94208,2536.8,2536.5,0.3956]
[1725308207940,3.94199,2536.8,2536.5,0.3956]
[1725308208087,6.28462,2536.9,2536.5,0.3956]
[1725308208500,3.94197,2536.8,2536.5,0.3956]
[1725308208729,2.3428,2536.9,2536.5,0.3956]
[1725308208918,6.28468,2536.9,2536.5,0.3456]
[1725308209243,3.94175,2537.0,2536.9,16.346953]
[1725308209543,8.43356,2537.0,2536.9,16.346953]
[1725308209842,5.51032236,2537.0,2536.9,16.346953]
[1725308211543,4.49175,2537.0,2536.9,16.346953]
[1725308212607,4.49175,2537.0,2536.9,16.51540961]
[1725308214102,10.69831,2537.0,2536.9,16.51540961]
[1725308214702,4.49166,2537.0,2536.9,16.51540961]
[1725308215522,4.44166,2537.0,2536.9,16.51540961]
[1725308216844,3.94166,2537.0,2536.9,16.51540961]
[1725308217219,3.94135,2537.2,2536.9,16.51540961]
[1725308220068,8.69315359,2537.5,2537.0,6.23036]
[1725308220352,3.94116,2537.4,2537.0,2.45751044]
[1725308220516,1.75216359,2537.3,2537.0,2.45751044]
[1725308221553,3.94116,2537.4,2537.0,2.45751044]
[1725308224837,3.94122,2537.3,2537.0,2.45751044]
[1725308225349,7.88202,2537.5,2537.0,2.45751044]
[1725308225551,5.69315359,2537.5,2537.0,2.45751044]
[1725308225753,3.94111,2537.4,2537.0,2.45751044]
[1725308228825,3.94121,2537.3,2537.0,2.45751044]
[1725308229278,3.9415,2537.1,2537.0,0.16881044]
[1725308229481,3.94173,2537.0,2536.6,2.3826]
[1725308229778,3.94173,2537.0,2536.6,3.409348]
[1725308231667,3.94173,2537.0,2536.6,7.351608]
[1725308231873,3.94149,2537.2,2536.7,2.71737191]
[1725308232168,3.94151,2537.1,2536.7,2.3492]
[1725308232589,3.94127,2537.3,2536.9,2.4667]
[1725308236085,3.94138,2537.2,2536.9,2.4667]
[1725308237655,3.94156,2537.1,2536.7,7.0737418]
[1725308237850,3.94156,2537.1,2536.8,1.94573219]
[1725308238051,3.94156,2537.1,2536.9,0.36812321]
[1725308238351,3.94156,2537.1,2536.8,1.57760898]
[1725308238771,3.94156,2537.1,2536.9,0.36811928]
[1725308238976,3.94156,2537.1,2536.7,7.0737418]
[1725308239186,3.94156,2537.1,2536.8,0.36814397]
[1725308239497,3.94156,2537.1,2536.9,0.36814397]
[1725308239645,3.9412,2537.3,2537.0,2.77601157]
[1725308239848,3.9412,2537.3,2537.0,2.4079]
[1725308241898,3.94113,2537.4,2537.0,2.4079]
[1725308241899,3.94106,2537.4,2537.0,2.4079]
[1725308242254,3.94106,2537.4,2537.0,6.34948]
[1725308242766,3.94106,2537.4,2537.1,0.16292785]
[1725308242966,3.9409,2537.5,2537.1,0.16292785]
[1725308243500,3.9409,2537.5,2537.1,4.10438785]
[1725308244154,8.69291359,2537.6,2537.1,4.10438785]
[1725308244373,4.0660095,2537.9,2537.3,3.94111]
[1725308244708,4.0660095,2537.9,2537.4,6.8460313]
[1725308244899,3.94043,2537.8,2537.4,2.53705564]
[1725308245386,0.1257395,2537.9,2537.7,2.3744]
[1725308245794,4.0660095,2537.9,2537.8,0.16216049]
[1725308246159,0.1257395,2537.9,2537.8,0.16216049]
[1725308246601,4.47258445,2537.9,2537.8,0.16216049]
[1725308246909,4.47258445,2537.9,2537.4,2.43]
[1725308247111,3.94044,2537.8,2537.4,2.43]
[1725308247812,3.94044,2537.8,2537.4,6.37104]
[1725308248122,4.0659995,2537.9,2537.4,6.37104]
[1725308249223,0.1257395,2537.9,2537.8,7.88084]
[1725308249374,0.1257395,2537.9,2537.8,11.17354036]
[1725308249804,0.1257395,2537.9,2537.8,7.23312036]
[1725308250068,0.1257395,2537.9,2537.8,7.62872036]
[1725308250268,0.1257395,2537.9,2537.8,13.6890925]
[1725308250513,0.005,2538.4,2538.3,12.21452]
[1725308250715,0.1257395,2540.4,2538.5,0.3956]
[1725308250927,0.1257395,2540.4,2539.7,4.15266359]
[1725308251069,3.93759,2539.7,2539.2,2.4005]
[1725308251414,0.1257395,2540.4,2539.2,8.09076359]
[1725308251616,3.93673,2540.2,2539.5,3.93767]
[1725308251823,3.93673,2540.2,2539.3,4.33356]
[1725308252108,0.393673,2540.1,2539.4,3.93792]
[1725308252271,0.1257395,2540.4,2540.0,1.75216359]
[1725308252472,0.1257395,2540.4,2539.9,10.27459]
[1725308252711,0.1257395,2540.4,2539.9,2.4005]
[1725308252918,3.9368,2540.2,2539.5,6.2049]
[1725308253420,3.93686,2540.1,2539.5,6.2049]
[1725308253569,0.393686,2540.0,2539.5,2.2672]
[1725308253784,3.93719,2539.9,2539.5,2.2672]
[1725308254629,3.93762,2539.6,2539.1,3.93826]
[1725308254832,3.93784,2539.5,2539.2,2.3805]
[1725308255128,3.93794,2539.4,2539.2,2.3805]
[1725308255330,3.93762,2539.6,2539.2,2.3805]
[1725308255998,3.93794,2539.4,2538.8,2.3083]
[1725308256183,3.93812,2539.3,2538.8,2.3083]
[1725308256384,3.93794,2539.4,2538.8,2.3083]
[1725308257288,7.87601,2539.4,2538.8,6.24705]
[1725308257495,3.93794,2539.4,2538.8,3.366453]
[1725308257698,3.93794,2539.4,2538.9,0.14271031]
[1725308258384,0.393762,2539.6,2538.9,0.14271031]
[1725308258589,7.87669,2539.2,2538.9,0.14271031]
[1725308258835,3.0,2539.8,2538.9,0.14271031]
[1725308258836,4.18976053,2539.5,2538.9,0.14271031]
[1725308258991,3.93855,2539.0,2538.9,0.14271031]
[1725308259186,3.93871,2538.9,2538.5,7.28]
[1725308259913,3.93849,2539.1,2538.5,7.28]
[1725308260320,3.93864,2539.0,2538.5,7.28]
[1725308261226,3.93874,2538.9,2538.5,7.28]
[1725308261635,3.93857,2539.0,2538.5,7.28]
[1725308262129,3.93857,2539.0,2538.4,2.4577]
[1725308262130,3.93887,2538.8,2538.4,2.4577]
[1725308262627,3.93863,2539.0,2538.4,6.47591155]
[1725308262940,7.87729,2539.0,2538.4,6.47591155]
[1725308263085,3.93842,2539.1,2538.5,3.93931]
[1725308263290,7.87726,2539.0,2538.5,0.07877635]
[1725308263509,3.93872,2538.9,2538.5,0.07877635]
[1725308264317,4.726448,2538.9,2538.4,2.4577]
[1725308264631,3.93903,2538.7,2538.4,2.4577]
[1725308265705,3.93919,2538.6,2538.3,0.3956]
[1725308266089,3.93919,2538.6,2538.1,13.67756]
[1725308266289,3.93919,2538.6,2538.1,9.7377]
[1725308266590,3.93934,2538.5,2538.1,2.4577]
[1725308266791,7.87876,2538.5,2538.1,2.4577]
[1725308267017,3.93934,2538.5,2538.1,2.4577]
[1725308267546,3.93934,2538.5,2537.9,11.22016]
[1725308267547,3.93975,2538.3,2537.9,7.28]
[1725308267690,3.93973,2538.3,2537.9,7.28]
[1725308268304,8.272734,2538.5,2537.9,7.28]
[1725308268487,3.9395,2538.4,2537.9,11.22015]
[1725308270106,4.333324,2538.5,2537.9,11.22015]
[1725308270610,4.333324,2538.5,2537.9,15.1603]
[1725308270808,4.333324,2538.5,2538.0,3.94009]
[1725308271205,4.333324,2538.5,2537.9,11.22015]
[1725308271448,0.4333324,2538.4,2537.9,11.22015]
[1725308271648,0.4333324,2538.4,2537.9,15.16031]
[1725308271809,3.93939,2538.5,2537.9,15.16031]
[1725308272145,3.93939,2538.5,2538.0,3.94009]
[1725308272837,3.93939,2538.5,2538.1,0.14451308]
[1725308273761,7.87886,2538.5,2538.1,0.14451308]
[1725308274120,3.93905,2538.7,2538.1,3.93993]
[1725308274423,3.93928,2538.6,2538.2,0.14442655]
[1725308275873,3.63885805,2539.3,2538.2,0.14442655]
[1725308276038,3.0,2538.9,2538.3,2.2688]
[1725308276415,3.93904,2538.7,2538.4,0.14425349]
[1725308277325,3.93926,2538.6,2538.4,0.14425349]
[1725308277946,3.93926,2538.6,2538.1,3.93992]
[1725308278154,3.93926,2538.6,2538.5,0.14464855]
[1725308278353,4.72709,2538.6,2538.1,3.93992]
[1725308278568,3.93904,2538.7,2538.5,0.1446609]
[1725308278727,3.93904,2538.7,2538.1,3.93992]
[1725308278929,3.93904,2538.7,2538.6,0.14458056]
[1725308279246,3.93904,2538.7,2538.1,3.93992]
[1725308279428,7.87815,2538.7,2538.1,3.93992]
[1725308279626,1.20679105,2538.7,2538.3,3.93958]
[1725308279822,1.20679105,2538.7,2538.2,4.08471665]
[1725308280028,3.93856,2539.0,2538.5,2.2792]
[1725308280223,3.0,2538.9,2538.5,6.21841]
[1725308280425,3.0,2538.9,2538.6,0.14459909]
[1725308280891,3.93773,2539.6,2538.6,0.14459909]
[1725308281097,3.93741,2539.8,2539.3,3.93798]
[1725308281370,3.93741,2539.8,2539.1,2.2792]
[1725308281576,3.93741,2539.8,2539.4,0.14374671]
[1725308281577,3.93748,2539.7,2539.4,0.14374671]
[1725308281758,0.787489,2539.6,2539.2,3.9381]
[1725308281931,4.725109,2539.6,2539.5,0.14366027]
[1725308282137,3.93868,2539.0,2538.6,0.3956]
[1725308282444,3.93868,2539.0,2538.4,13.49858]
[1725308282445,3.93873,2538.9,2538.7,0.1443397]
[1725308282964,3.93864,2539.0,2538.8,0.14425321]
[1725308283167,5.14531305,2539.0,2538.5,3.93924]
[1725308283366,3.93864,2539.0,2538.9,0.14416672]
[1725308283573,3.93833,2539.2,2538.7,3.93902]
[1725308283872,0.81280905,2539.2,2538.8,3.93873]
[1725308284101,3.9381,2539.3,2538.8,4.08298321]
[1725308284254,3.9381,2539.3,2538.8,0.14425321]
[1725308284458,3.9381,2539.3,2538.7,4.01779577]
[1725308284459,3.93832,2539.2,2538.7,3.93893]
[1725308284677,4.725955,2539.2,2538.7,3.93893]
[1725308284960,4.725955,2539.2,2538.8,0.14425321]
[1725308285194,0.787635,2539.2,2538.8,4.08311321]
[1725308285458,3.0,2539.6,2539.0,2.2959]
[1725308285459,3.93772,2539.6,2539.0,2.2959]
[1725308285660,4.75045805,2539.6,2539.1,4.08238376]
[1725308286006,0.81274805,2539.6,2539.2,3.93823]
[1725308286202,4.75042805,2539.6,2539.1,4.08231376]
[1725308286406,4.75042805,2539.6,2539.3,0.14382082]
[1725308286407,0.81274805,2539.6,2539.3,0.14382082]
[1725308286555,0.81274805,2539.6,2539.2,0.14390729]
[1725308286762,4.75047805,2539.6,2539.4,0.14373437]
[1725308286960,4.75047805,2539.6,2539.1,3.93831]
[1725308286961,4.75047805,2539.6,2539.3,0.14382082]
[1725308287180,4.75047805,2539.6,2539.5,0.14364792]
[1725308287381,4.75047805,2539.6,2539.4,0.14373437]
[1725308287598,4.75047805,2539.6,2539.5,0.14364792]
[1725308287905,3.93793,2539.5,2538.9,3.93859]
[1725308288108,3.93811,2539.3,2538.7,6.70042]
[1725308288309,3.93843,2539.1,2538.7,6.70042]
[1725308288611,3.93843,2539.1,2538.7,2.7615]
[1725308289101,3.93843,2539.1,2538.3,3.0]
[1725308289102,7.87751,2538.9,2538.4,2.3659]
[1725308289259,3.93871,2538.9,2538.4,6.30535]
[1725308290266,8.12898053,2538.6,2538.3,0.3956]
[1725308290489,3.93913,2538.7,2538.3,0.3956]
[1725308290693,7.87825,2538.7,2538.3,0.3956]
[1725308291004,3.9392,2538.6,2538.2,7.28]
[1725308291768,3.93933,2538.5,2538.2,7.28]
[1725308292319,3.93933,2538.5,2538.1,2.3612]
[1725308292975,3.93933,2538.5,2538.1,6.3011]
[1725308293313,3.93933,2538.5,2538.0,3.94002]
[1725308293720,3.93933,2538.5,2538.0,3.93999]
[1725308294016,5.2578,2539.2,2538.0,3.93999]
[1725308294017,8.12872053,2538.8,2538.2,3.93971]
[1725308294308,3.93902,2538.7,2538.2,3.93971]
[1725308295073,3.93934,2538.5,2538.1,3.93987]
[1725308295473,4.18976053,2538.6,2538.1,3.93987]
[1725308295784,3.93961,2538.4,2537.9,11.61576]
[1725308295987,4.333601,2538.3,2537.9,7.28]
[1725308296192,4.18976053,2538.2,2537.8,6.403]
[1725308296527,4.18976053,2538.2,2537.6,19.52]
[1725308296528,3.94005,2538.1,2537.6,7.6756]
[1725308296681,3.94005,2538.1,2537.6,7.28]
[1725308296883,3.94005,2538.1,2537.7,3.94057]
[1725308297618,3.94005,2538.1,2537.6,11.22069]
[1725308298479,8.12988053,2538.0,2537.6,7.28]
[1725308298883,3.94028,2537.9,2537.6,7.28]
[1725308301127,3.94028,2537.9,2537.4,3.94095]
[1725308301309,3.94028,2537.9,2537.4,5.790418]
[1725308302340,3.94044,2537.8,2537.4,1.849468]
[1725308302626,3.94044,2537.8,2537.3,27.40218]